bitfinex/quotes_SOLUSD_20220207
["timestamp","ask_amount","ask_price","bid_price","bid_amount"]
[1644195609807,1.24149897,113.91,113.83,12.74]
[1644195610008,1.24149897,113.92,113.85,34.58440331]
[1644195610207,1.24149897,113.92,113.85,40.83440331]
[1644195610410,45.51049328,113.94,113.87,13.1717]
[1644195610411,1.24149897,113.93,113.87,13.1717]
[1644195610609,1.24149897,113.93,113.87,19.1717]
[1644195610908,1.24149897,113.94,113.87,19.4217]
[1644195611108,1.24149897,113.94,113.87,32.1617]
[1644195611308,15.82633806,113.93,113.87,32.1617]
[1644195611509,15.82633806,113.93,113.88,37.98926836]
[1644195611708,1.24149897,113.94,113.89,13.1712]
[1644195612410,1.24149897,113.95,113.89,13.4212]
[1644195612609,1.24149897,113.95,113.89,19.4212]
[1644195612810,1.24149897,113.95,113.9,48.59881495]
[1644195613113,1.24149897,113.97,113.91,13.1678]
[1644195613310,21.40318083,113.98,113.91,19.4178]
[1644195613511,1.24149897,113.98,113.91,19.4178]
[1644195613910,6.0,113.98,113.92,42.93038395]
[1644195614112,5.5,113.98,113.93,13.1654]
[1644195614511,2.27473723,113.99,113.94,46.43727618]
[1644195614713,1.03323826,113.99,113.94,46.43727618]
[1644195614911,1.03323826,113.99,113.94,52.43727618]
[1644195615913,1.03323826,113.99,113.94,65.60267618]
[1644195616317,1.03323826,113.99,113.95,2.12388464]
[1644195616515,1.03323826,113.99,113.95,14.86388464]
[1644195616716,1.03323826,113.99,113.95,18.99]
[1644195617115,1.03323826,113.99,113.96,13.1617]
[1644195617318,6.06439994,113.98,113.93,12.74]
[1644195617516,6.06439994,113.98,113.91,12.74]
[1644195617717,6.31439994,113.98,113.9,36.5127]
[1644195618018,12.31439994,113.98,113.9,23.7727]
[1644195618219,36.39662028,113.97,113.9,52.05708555]
[1644195618617,36.64662028,113.97,113.9,52.05708555]
[1644195618817,36.64662028,113.97,113.89,23.9207]
[1644195619020,42.64662028,113.97,113.89,23.9207]
[1644195619319,42.64662028,113.97,113.86,12.74]
[1644195619518,4.389,113.96,113.86,13.1746]
[1644195619719,10.639,113.96,113.86,13.1746]
[1644195619918,22.537067,113.95,113.86,46.09892919]
[1644195620123,4.389,113.94,113.84,47.939]
[1644195620318,4.639,113.94,113.84,53.939]
[1644195620519,23.8136,113.94,113.84,67.1155]
[1644195620721,23.8136,113.94,113.84,13.1765]
[1644195620924,12.74,113.93,113.82,2.12388464]
[1644195621119,12.74,113.93,113.81,40.48641352]
[1644195621120,22.537067,113.91,113.81,40.48641352]
[1644195621321,22.787067,113.91,113.81,40.48641352]
[1644195621518,28.787067,113.91,113.81,46.48641352]
[1644195622320,28.787067,113.91,113.81,46.73641352]
[1644195622520,28.787067,113.91,113.81,46.48641352]
[1644195622723,13.1812,113.89,113.81,40.48641352]
[1644195622925,40.78762028,113.88,113.81,40.48641352]
[1644195623122,36.39662028,113.88,113.81,40.48641352]
[1644195623323,42.64662028,113.88,113.81,40.48641352]
[1644195624024,13.1827,113.87,113.81,40.48641352]
[1644195624321,19.4327,113.87,113.81,40.48641352]
[1644195625322,19.4327,113.87,113.8,13.1821]
[1644195625722,19.4327,113.87,113.78,13.1833]
[1644195626123,13.1855,113.84,113.75,46.41229228]
[1644195626424,18.0646409,113.83,113.77,35.87209469]
[1644195626823,24.3146409,113.83,113.75,24.4904]
[1644195627024,24.3146409,113.83,113.74,12.883]
[1644195627323,24.3146409,113.83,113.73,19.25068203]
[1644195627522,13.1884,113.82,113.74,15.30758203]
[1644195627722,13.4384,113.82,113.74,15.30758203]
[1644195627924,13.4384,113.82,113.75,39.08839634]
[1644195627925,40.86904638,113.81,113.75,39.08839634]
[1644195628323,0.25,113.81,113.75,39.08839634]
[1644195628725,0.25,113.81,113.75,52.27609634]
[1644195629327,13.4384,113.82,113.75,52.27609634]
[1644195629728,0.25,113.82,113.75,52.52609634]
[1644195629928,0.25,113.82,113.75,54.64477837]
[1644195630128,13.1866,113.83,113.75,60.64477837]
[1644195630129,0.25,113.83,113.75,60.64477837]
[1644195630327,46.28960181,113.85,113.75,60.64477837]
[1644195630629,52.28960181,113.85,113.75,60.39477837]
[1644195631230,52.28960181,113.85,113.75,60.64477837]
[1644195631430,6.0,113.85,113.75,60.64477837]
[1644195631635,6.0,113.87,113.75,73.38477837]
[1644195631829,6.0,113.87,113.76,4.393]
[1644195632030,6.0,113.88,113.79,13.1814]
[1644195632230,6.0,113.89,113.79,13.4314]
[1644195632433,44.73652363,113.89,113.8,41.48254667]
[1644195632733,38.98652363,113.89,113.8,49.6012287]
[1644195633132,52.16712363,113.89,113.81,13.1806]
[1644195633433,52.16712363,113.89,113.8,6.0]
[1644195633636,4.391,113.88,113.78,2.11868203]
[1644195633835,4.641,113.88,113.78,2.11868203]
[1644195634054,17.381,113.88,113.78,2.11868203]
[1644195634255,13.1861,113.85,113.76,46.3849]
[1644195634455,38.73652363,113.84,113.76,35.71642192]
[1644195634858,38.98652363,113.84,113.76,35.71642192]
[1644195635258,44.98652363,113.84,113.76,35.71642192]
[1644195635857,13.1868,113.83,113.75,13.1869]
[1644195636058,19.1868,113.83,113.74,2.11868203]
[1644195636260,19.4368,113.83,113.73,13.1893]
[1644195636857,20.19716365,113.82,113.73,13.1893]
[1644195637058,13.1922,113.8,113.71,13.1922]
[1644195637257,13.1922,113.8,113.7,4.394]
[1644195637258,13.4422,113.8,113.7,4.394]
[1644195637458,19.4422,113.8,113.69,23.5286]
[1644195637658,21.62903917,113.8,113.69,23.5286]
[1644195638059,13.1942,113.77,113.7,39.27241151]
[1644195638258,13.4442,113.77,113.7,39.27241151]
[1644195638866,0.25,113.77,113.7,39.27241151]
[1644195639062,0.25,113.77,113.7,45.27241151]
[1644195639262,13.4438,113.77,113.7,39.27241151]
[1644195639462,23.51316052,113.76,113.7,39.27241151]
[1644195639662,13.4438,113.77,113.7,39.27241151]
[1644195639863,0.25,113.76,113.7,39.27241151]
[1644195640063,0.25,113.76,113.68,12.74]
[1644195640264,13.1963,113.75,113.67,48.4367]
[1644195640463,13.1963,113.75,113.64,4.396]
[1644195640664,19.4463,113.75,113.64,6.0]
[1644195640863,19.4463,113.75,113.63,20.85882435]
[1644195641062,45.15197264,113.74,113.63,14.85882435]
[1644195641263,45.40197264,113.74,113.61,54.6331277]
[1644195641468,13.2026,113.71,113.62,13.2029]
[1644195641662,19.2026,113.71,113.62,13.2029]
[1644195641869,19.4526,113.71,113.62,13.2029]
[1644195642066,33.23431464,113.71,113.63,35.80881151]
[1644195643565,33.23431464,113.71,113.63,35.30881151]
[1644195643767,33.23431464,113.71,113.63,37.68316294]
[1644195644069,19.4526,113.71,113.63,50.88446294]
[1644195644264,13.4526,113.71,113.63,50.88446294]
[1644195645067,37.75603644,113.7,113.63,15.32565143]
[1644195645275,51.20813644,113.7,113.63,2.12435143]
[1644195645679,57.20813644,113.7,113.59,6.52787511]
[1644195645870,57.20813644,113.7,113.56,4.399]
[1644195645871,4.399,113.69,113.56,4.399]
[1644195646071,21.67765084,113.68,113.54,1.25131695]
[1644195646271,13.2096,113.66,113.54,1.25131695]
[1644195646470,4.401,113.65,113.53,13.2119]
[1644195646672,10.401,113.65,113.53,13.2119]
[1644195646871,12.83783917,113.65,113.52,45.6148]
[1644195647073,12.83783917,113.65,113.53,42.98744988]
[1644195647074,36.34520406,113.64,113.53,42.98744988]
[1644195647272,38.78204323,113.64,113.53,42.98744988]
[1644195647472,13.2133,113.62,113.53,56.44984988]
[1644195647671,6.0,113.62,113.53,62.44984988]
[1644195647871,29.33848322,113.62,113.53,62.19984988]
[1644195648273,23.33848322,113.62,113.53,62.19984988]
[1644195648681,23.33848322,113.62,113.53,56.19984988]
[1644195648872,0.25,113.62,113.53,56.19984988]
[1644195649071,6.0,113.66,113.54,4.402]
[1644195649274,6.25,113.66,113.56,13.2081]
[1644195649472,6.0,113.67,113.56,13.2081]
[1644195649672,6.0,113.68,113.57,2.12987511]
[1644195649873,53.93554728,113.68,113.57,47.38249669]
[1644195650073,53.93554728,113.68,113.57,53.63249669]
[1644195650274,53.93554728,113.68,113.59,46.26386409]
[1644195650874,54.18554728,113.68,113.59,46.26386409]
[1644195651275,54.18554728,113.68,113.59,46.51386409]
[1644195651877,54.18554728,113.68,113.59,46.26386409]
[1644195652074,67.39274728,113.68,113.59,46.51386409]
[1644195652676,67.39274728,113.68,113.59,46.26386409]
[1644195653276,4.4,113.67,113.56,28.07847511]
[1644195653477,17.6086,113.67,113.56,13.2086]
[1644195653678,2.18683917,113.66,113.54,2.12987511]
[1644195653877,4.401,113.65,113.54,8.12987511]
[1644195654379,23.8617,113.65,113.55,52.14346612]
[1644195654577,0.25,113.65,113.55,60.27334123]
[1644195654777,0.25,113.65,113.56,2.12987511]
[1644195655077,0.25,113.65,113.56,8.12987511]
[1644195655278,10.651,113.67,113.56,8.37987511]
[1644195655479,38.73088833,113.66,113.58,13.2068]
[1644195655679,44.73088833,113.66,113.57,36.43996948]
[1644195655879,44.98088833,113.66,113.57,36.43996948]
[1644195656278,44.98088833,113.66,113.54,58.89467511]
[1644195656478,44.98088833,113.66,113.54,64.89467511]
[1644195656678,53.42888833,113.66,113.54,64.89467511]
[1644195657079,66.63828833,113.66,113.56,13.2085]
[1644195657279,66.63828833,113.66,113.57,36.8406084]
[1644195657781,14.698,113.66,113.57,37.0906084]
[1644195657982,6.25,113.66,113.57,37.0906084]
[1644195658182,0.25,113.66,113.57,43.0906084]
[1644195658380,6.25,113.66,113.57,56.2988084]
[1644195658580,6.0,113.66,113.57,56.2988084]
[1644195658781,48.46426078,113.66,113.57,56.2988084]
[1644195658982,0.25,113.66,113.57,56.2988084]
[1644195659180,6.0,113.68,113.57,71.16868351]
[1644195659382,6.25,113.68,113.57,71.16868351]
[1644195659982,48.02123616,113.67,113.57,71.16868351]
[1644195660182,54.02123616,113.67,113.57,65.16868351]
[1644195660382,54.27123616,113.67,113.57,62.7888084]
[1644195660585,4.4,113.66,113.57,36.8406084]
[1644195660783,11.41245112,113.65,113.57,37.0906084]
[1644195660982,11.41245112,113.65,113.57,43.0906084]
[1644195661184,11.66245112,113.65,113.57,43.0906084]
[1644195661383,11.41245112,113.65,113.57,43.0906084]
[1644195661583,11.66245112,113.65,113.57,43.0906084]
[1644195661986,4.401,113.69,113.57,56.2985084]
[1644195662184,4.4,113.73,113.58,4.4]
[1644195662385,0.25,113.69,113.58,12.74]
[1644195662583,0.25,113.69,113.58,25.51987511]
[1644195662784,0.25,113.69,113.58,21.11987511]
[1644195662986,0.25,113.69,113.59,41.18719111]
[1644195663185,0.25,113.69,113.6,25.9438]
[1644195663384,0.25,113.69,113.61,4.399]
[1644195663586,0.25,113.73,113.61,25.26887511]
[1644195663785,10.649,113.74,113.61,25.51887511]
[1644195663987,34.62928052,113.73,113.62,49.03909544]
[1644195664285,40.87928052,113.73,113.62,55.28909544]
[1644195664490,40.62928052,113.73,113.62,55.28909544]
[1644195664890,4.399,113.74,113.63,15.32897511]
[1644195665089,4.398,113.77,113.63,38.46697511]
[1644195665288,17.6589,113.79,113.64,2.12987511]
[1644195665488,4.397,113.79,113.65,17.136]
[1644195665787,4.397,113.79,113.66,38.88827421]
[1644195665788,43.7938745,113.78,113.66,38.88827421]
[1644195665988,43.7938745,113.78,113.66,41.01818413]
[1644195666188,50.0438745,113.78,113.67,2.12990992]
[1644195666387,50.0438745,113.78,113.68,34.21329514]
[1644195666787,50.0438745,113.78,113.68,34.46329514]
[1644195666990,63.2397745,113.78,113.68,47.65759514]
[1644195667589,50.0438745,113.78,113.68,53.65759514]
[1644195667813,6.0,113.78,113.68,55.78750506]
[1644195668190,10.397,113.79,113.68,55.78750506]
[1644195668388,6.0,113.79,113.68,55.78750506]
[1644195668588,4.396,113.8,113.68,68.52750506]
[1644195668794,35.12656999,113.8,113.68,68.52750506]
[1644195669491,4.394,113.82,113.68,68.52750506]
[1644195669689,6.0,113.82,113.69,4.394]
[1644195669889,7.24149897,113.83,113.72,13.1864]
[1644195670089,6.0,113.83,113.72,36.3204]
[1644195670289,6.0,113.83,113.72,38.70030992]
[1644195670489,43.40404166,113.82,113.73,38.18451657]
[1644195670689,49.40404166,113.82,113.73,44.18451657]
[1644195671092,49.65404166,113.82,113.73,51.37341657]
[1644195672193,49.65404166,113.82,113.73,51.62341657]
[1644195672996,62.84444166,113.82,113.73,51.37341657]
[1644195673199,62.84444166,113.82,113.73,51.62341657]
[1644195673397,62.84444166,113.82,113.73,13.1889]
[1644195673598,65.03128083,113.82,113.72,4.394]
[1644195673797,17.134,113.81,113.69,47.6446]
[1644195673998,13.1939,113.79,113.69,47.6446]
[1644195674198,13.4439,113.79,113.69,47.8946]
[1644195674398,16.02964562,113.78,113.7,38.76666297]
[1644195674599,22.02964562,113.78,113.7,38.76666297]
[1644195674798,22.27964562,113.78,113.7,38.76666297]
[1644195675198,22.27964562,113.78,113.69,60.8391]
[1644195675199,35.47464562,113.78,113.69,60.8391]
[1644195675398,35.47464562,113.78,113.65,46.9776]
[1644195675597,17.136,113.77,113.66,13.1981]
[1644195675797,17.386,113.77,113.66,13.1981]
[1644195675998,23.386,113.77,113.66,13.1981]
[1644195676298,34.79465047,113.76,113.67,39.78216517]
[1644195676498,23.386,113.77,113.67,39.78216517]
[1644195676499,6.25,113.77,113.67,39.78216517]
[1644195676699,6.25,113.77,113.67,45.78216517]
[1644195676897,6.25,113.77,113.68,2.12990992]
[1644195677103,0.25,113.77,113.68,8.12990992]
[1644195677299,6.25,113.77,113.68,8.37990992]
[1644195677499,6.25,113.77,113.69,41.59698456]
[1644195677701,0.25,113.77,113.69,49.97689448]
[1644195678101,0.25,113.79,113.69,49.97689448]
[1644195678299,10.646,113.81,113.69,49.97689448]
[1644195678501,39.34008138,113.8,113.69,49.72689448]
[1644195678703,45.59008138,113.8,113.69,49.72689448]
[1644195678906,58.78258138,113.8,113.69,62.92139448]
[1644195679705,58.78258138,113.8,113.69,63.17139448]
[1644195680105,58.78258138,113.8,113.69,55.04148456]
[1644195680506,58.78258138,113.8,113.69,54.79148456]
[1644195680906,33.2888059,113.78,113.69,54.79148456]
[1644195681112,39.2888059,113.78,113.67,14.86990992]
[1644195681307,39.2888059,113.78,113.66,4.396]
[1644195681308,39.5388059,113.78,113.66,4.396]
[1644195681506,17.136,113.77,113.66,4.396]
[1644195681706,17.386,113.77,113.66,4.396]
[1644195682106,36.56690954,113.76,113.67,37.90388753]
[1644195682310,36.81690954,113.76,113.67,37.90388753]
[1644195682927,13.1985,113.75,113.67,37.90388753]
[1644195683124,22.86677774,113.74,113.67,37.90388753]
[1644195683325,23.11677774,113.74,113.67,37.90388753]
[1644195684127,36.31587774,113.74,113.65,46.9776]
[1644195684626,36.31587774,113.74,113.64,13.1994]
[1644195684828,42.31587774,113.74,113.64,13.4494]
[1644195685326,42.31587774,113.74,113.65,36.59149042]
[1644195687429,42.31587774,113.74,113.65,49.79089042]
[1644195688629,42.31587774,113.74,113.65,36.59149042]
[1644195689931,42.31587774,113.74,113.65,49.79069042]
[1644195690439,42.31587774,113.74,113.65,36.59149042]
[1644195691431,42.31587774,113.74,113.63,37.2252]
[1644195691632,55.05587774,113.74,113.63,37.2252]
[1644195692037,56.29737671,113.74,113.62,45.6648]
[1644195692233,13.2048,113.7,113.62,45.6648]
[1644195692439,36.56690954,113.69,113.61,35.35078054]
[1644195692633,36.56690954,113.69,113.61,41.35078054]
[1644195692833,42.81690954,113.69,113.61,41.35078054]
[1644195693034,36.81690954,113.69,113.61,41.35078054]
[1644195693235,42.81690954,113.69,113.61,41.60078054]
[1644195693434,42.81690954,113.69,113.61,41.35078054]
[1644195694041,56.02160954,113.69,113.61,54.55488054]
[1644195694837,56.02160954,113.69,113.59,49.47371695]
[1644195695040,56.02160954,113.69,113.59,62.67911695]
[1644195695237,56.02160954,113.69,113.59,48.2224]
[1644195695537,62.60744871,113.69,113.57,37.98271695]
[1644195695739,62.60744871,113.69,113.57,44.23271695]
[1644195695941,60.42060954,113.69,113.58,41.54835805]
[1644195696340,60.42060954,113.69,113.58,41.79835805]
[1644195696745,60.42060954,113.69,113.58,57.13586797]
[1644195696941,60.42060954,113.69,113.58,63.13586797]
[1644195697141,42.81690954,113.69,113.58,75.87586797]
[1644195697542,36.81690954,113.69,113.58,75.87586797]
[1644195697740,42.81690954,113.69,113.58,75.87586797]
[1644195700450,0.25,113.69,113.58,75.87586797]
[1644195700649,27.9102,113.74,113.59,4.4]
[1644195700849,23.5102,113.74,113.63,13.1978]
[1644195701350,23.5102,113.74,113.64,37.85387934]
[1644195701752,29.5102,113.74,113.66,43.00200788]
[1644195701951,6.0,113.74,113.66,43.00200788]
[1644195702151,0.25,113.74,113.66,43.00200788]
[1644195702351,50.55836892,113.75,113.66,43.00200788]
[1644195702951,50.55836892,113.75,113.67,13.1972]
[1644195703151,50.55836892,113.75,113.68,36.89659817]
[1644195703953,6.25,113.75,113.68,36.89659817]
[1644195704154,0.25,113.75,113.68,36.89659817]
[1644195704354,6.0,113.75,113.68,36.89659817]
[1644195704757,6.25,113.75,113.68,36.89659817]
[1644195704955,48.32548064,113.74,113.64,52.37030992]
[1644195705158,54.57548064,113.74,113.62,56.7379]
[1644195705356,54.57548064,113.74,113.62,56.9879]
[1644195705357,58.97348064,113.74,113.62,56.9879]
[1644195705956,58.97348064,113.74,113.63,36.185369]
[1644195706658,58.97348064,113.74,113.63,38.31527892]
[1644195707058,72.17238064,113.74,113.65,42.66975001]
[1644195707359,67.77438064,113.74,113.65,42.66975001]
[1644195708160,69.01587961,113.74,113.65,42.66975001]
[1644195708459,67.52438064,113.74,113.65,42.66975001]
[1644195708759,71.92138064,113.74,113.65,42.66975001]
[1644195708959,73.16287961,113.74,113.65,42.66975001]
[1644195709182,68.76587961,113.74,113.65,42.66975001]
[1644195709780,69.01587961,113.74,113.65,42.66975001]
[1644195710182,69.01587961,113.74,113.65,55.86925001]
[1644195710982,68.76587961,113.74,113.65,55.86925001]
[1644195711182,7.24149897,113.74,113.65,57.99915993]
[1644195711385,6.0,113.74,113.65,63.99915993]
[1644195711583,11.63849897,113.75,113.65,63.99915993]
[1644195711783,7.24149897,113.75,113.65,57.99915993]
[1644195711983,7.24149897,113.75,113.65,55.86925001]
[1644195712184,51.18571915,113.75,113.65,55.86925001]
[1644195712584,51.43571915,113.75,113.65,55.86925001]
[1644195712790,15.4894671,113.73,113.65,55.86925001]
[1644195713184,21.7394671,113.73,113.65,55.86925001]
[1644195714989,21.7394671,113.73,113.65,13.1995]
[1644195715388,34.9400671,113.73,113.64,24.7389]
[1644195715988,34.9400671,113.73,113.65,42.04989975]
[1644195716586,34.9400671,113.73,113.65,55.24929975]
[1644195717587,34.9400671,113.73,113.64,24.7389]
[1644195717787,39.3380671,113.73,113.63,23.3011]
[1644195717987,12.74,113.72,113.61,1.25131695]
[1644195718189,13.2039,113.7,113.6,49.69030992]
[1644195718589,39.79530605,113.69,113.6,98.05224319]
[1644195718789,40.04530605,113.69,113.6,111.25694319]
[1644195719089,46.04530605,113.69,113.6,117.25694319]
[1644195720091,59.25040605,113.69,113.6,117.25694319]
[1644195720289,46.04530605,113.69,113.61,2.12990992]
[1644195720490,40.04530605,113.69,113.62,61.98916893]
[1644195720893,40.04530605,113.69,113.62,64.11907885]
[1644195722692,0.25,113.69,113.62,64.11907885]
[1644195722893,19.4534,113.71,113.62,64.11907885]
[1644195723594,57.44515683,113.71,113.62,64.11907885]
[1644195724694,0.25,113.71,113.62,82.85907885]
[1644195724894,0.25,113.71,113.62,83.10907885]
[1644195725095,56.08339897,113.72,113.62,83.10907885]
[1644195725296,54.8419,113.72,113.62,83.10907885]
[1644195725697,6.0,113.72,113.62,83.10907885]
[1644195725899,7.24149897,113.72,113.62,83.10907885]
[1644195726097,7.24149897,113.73,113.62,83.10907885]
[1644195726296,1.24149897,113.73,113.62,83.10907885]
[1644195726496,7.24149897,113.73,113.62,83.10907885]
[1644195726696,52.34962471,113.73,113.62,108.03437885]
[1644195727297,52.59962471,113.73,113.62,108.03437885]
[1644195728998,52.34962471,113.73,113.62,108.03437885]
[1644195729298,52.34962471,113.73,113.62,109.2856958]
[1644195730298,52.59962471,113.73,113.62,109.2856958]
[1644195732402,65.79992471,113.73,113.62,109.2856958]
[1644195732602,65.79992471,113.73,113.62,101.78437885]
[1644195732801,65.79992471,113.73,113.62,99.65446893]
[1644195733010,1.24149897,113.72,113.62,86.91446893]
[1644195733210,14.32556154,113.71,113.62,86.91446893]
[1644195733611,33.77836154,113.71,113.6,38.69841695]
[1644195733809,1.24149897,113.7,113.6,24.2426]
[1644195734009,24.97456154,113.71,113.6,24.2426]
[1644195734010,5.64049897,113.69,113.6,24.2426]
[1644195734211,1.49149897,113.69,113.6,24.2426]
[1644195734409,7.49149897,113.69,113.6,24.2426]
[1644195734610,49.48291417,113.69,113.61,37.96928461]
[1644195734810,62.68751417,113.69,113.61,37.96928461]
[1644195736013,49.48291417,113.69,113.61,51.17348461]
[1644195736214,6.25,113.69,113.61,51.17348461]
[1644195736412,6.25,113.69,113.61,53.30339453]
[1644195737010,6.25,113.69,113.61,51.17348461]
[1644195737011,19.4545,113.69,113.61,51.17348461]
[1644195737213,54.78369631,113.69,113.61,51.17348461]
[1644195738412,54.78369631,113.69,113.61,37.96928461]
[1644195738915,56.02519528,113.69,113.61,37.96928461]
[1644195739114,54.78369631,113.69,113.61,37.96928461]
[1644195739312,56.02519528,113.69,113.61,37.96928461]
[1644195740821,54.78369631,113.69,113.61,37.96928461]
[1644195741323,54.78369631,113.69,113.6,24.2426]
[1644195741524,54.78369631,113.69,113.59,13.2056]
[1644195741722,2.18683917,113.68,113.56,16.12122687]
[1644195741925,2.18683917,113.68,113.54,48.4281]
[1644195741926,13.2109,113.65,113.54,4.399]
[1644195742125,4.401,113.64,113.54,4.399]
[1644195742324,24.10449097,113.63,113.54,42.85248558]
[1644195742725,30.35449097,113.63,113.54,42.85248558]
[1644195743744,43.56649097,113.63,113.54,56.06448558]
[1644195743944,43.56649097,113.63,113.54,62.06448558]
[1644195744147,43.56649097,113.63,113.54,56.06448558]
[1644195744543,43.56649097,113.63,113.54,51.66548558]
[1644195747444,43.56649097,113.63,113.54,38.45348558]
[1644195749347,43.56649097,113.63,113.52,0.1]
[1644195750248,43.56649097,113.63,113.52,46.42627391]
[1644195750448,45.75333014,113.63,113.52,46.42627391]
[1644195750847,43.56649097,113.63,113.52,59.64087391]
[1644195751350,43.56649097,113.63,113.52,91.81588383]
[1644195753951,6.0,113.63,113.52,91.81588383]
[1644195754150,30.9782,113.65,113.52,104.55588383]
[1644195754353,6.0,113.63,113.52,105.80720078]
[1644195754551,6.0,113.65,113.52,105.80720078]
[1644195754951,51.84066127,113.65,113.52,105.80720078]
[1644195755352,52.09066127,113.65,113.52,105.80720078]
[1644195755955,52.09066127,113.65,113.53,1.25131695]
[1644195756252,52.09066127,113.65,113.56,13.2069]
[1644195756453,6.25,113.65,113.56,13.2069]
[1644195756654,0.25,113.65,113.56,19.4569]
[1644195756856,6.0,113.65,113.56,19.4569]
[1644195757054,6.0,113.65,113.56,21.58680992]
[1644195757356,6.25,113.65,113.57,42.56797016]
[1644195757555,0.25,113.65,113.6,37.89193937]
[1644195757861,6.25,113.65,113.6,37.89193937]
[1644195758254,42.2619,113.68,113.6,37.89193937]
[1644195758454,23.0555,113.68,113.6,37.89193937]
[1644195758656,13.204,113.7,113.6,37.89193937]
[1644195758855,23.0303,113.71,113.6,57.34703937]
[1644195759058,29.0303,113.71,113.6,59.47694929]
[1644195759255,34.24823242,113.7,113.6,59.47694929]
[1644195759457,34.24823242,113.7,113.6,107.02904929]
[1644195759656,40.24823242,113.7,113.6,107.02904929]
[1644195760057,40.49823242,113.7,113.6,107.02904929]
[1644195760760,40.49823242,113.7,113.6,104.89913937]
[1644195760959,40.49823242,113.7,113.6,98.64913937]
[1644195760960,13.2043,113.69,113.6,98.64913937]
[1644195761159,25.18545486,113.68,113.6,98.64913937]
[1644195761361,25.18545486,113.68,113.6,85.44403937]
[1644195761583,31.43545486,113.68,113.6,85.44403937]
[1644195762662,44.63945486,113.68,113.6,85.44403937]
[1644195763061,13.207,113.67,113.6,85.44403937]
[1644195763260,13.457,113.67,113.6,85.44403937]
[1644195763460,19.457,113.67,113.6,85.44403937]
[1644195764261,34.24823242,113.66,113.6,85.44403937]
[1644195764664,34.49823242,113.66,113.6,85.44403937]
[1644195765763,0.25,113.66,113.6,85.44403937]
[1644195766163,19.457,113.67,113.6,85.44403937]
[1644195766770,19.207,113.67,113.6,85.44403937]
[1644195766970,31.08636283,113.67,113.6,85.44403937]
[1644195767172,31.08636283,113.67,113.6,47.5521]
[1644195767572,31.08636283,113.67,113.57,13.2078]
[1644195768172,31.33636283,113.67,113.58,40.31013184]
[1644195769990,31.33636283,113.67,113.58,53.51753184]
[1644195771094,34.76470097,113.67,113.58,40.31013184]
[1644195772895,40.84100958,113.65,113.58,40.31013184]
[1644195773195,54.05050958,113.65,113.58,40.31013184]
[1644195773396,54.30050958,113.65,113.58,40.31013184]
[1644195774595,13.4595,113.65,113.58,40.31013184]
[1644195775796,38.32067185,113.64,113.58,40.31013184]
[1644195775997,19.4595,113.65,113.58,40.31013184]
[1644195776599,13.4595,113.65,113.58,40.31013184]
[1644195776995,48.9128196,113.65,113.58,40.31013184]
[1644195777796,48.9128196,113.65,113.58,42.44004186]
[1644195778396,48.9128196,113.65,113.58,40.31013184]
[1644195779496,13.4595,113.65,113.58,40.31013184]
[1644195779797,0.25,113.65,113.58,66.25783184]
[1644195780197,13.4573,113.66,113.58,66.25783184]
[1644195780598,41.89760826,113.65,113.58,68.38774186]
[1644195780800,42.14760826,113.65,113.58,68.38774186]
[1644195781399,0.25,113.65,113.58,68.38774186]
[1644195781599,19.2073,113.66,113.58,68.38774186]
[1644195781600,1.24149897,113.67,113.58,74.38774186]
[1644195781801,1.24149897,113.69,113.58,74.63774186]
[1644195782001,1.24149897,113.69,113.62,13.2023]
[1644195782204,23.0303,113.71,113.62,13.2023]
[1644195782205,1.24149897,113.7,113.62,13.2023]
[1644195782402,1.24149897,113.7,113.6,23.4286]
[1644195782603,47.1586535,113.69,113.61,46.01772879]
[1644195782802,60.6131535,113.69,113.61,46.01772879]
[1644195783200,66.6131535,113.69,113.61,58.75772879]
[1644195783600,60.6131535,113.69,113.61,58.75772879]
[1644195784402,60.6131535,113.69,113.6,23.4286]
[1644195784604,1.24149897,113.67,113.6,23.4286]
[1644195784802,1.24149897,113.67,113.55,1.25131695]
[1644195784803,13.2091,113.66,113.55,1.25131695]
[1644195785207,20.70059897,113.66,113.54,57.85872697]
[1644195785406,13.51653275,113.65,113.56,38.30514115]
[1644195785609,29.84953275,113.65,113.56,38.30514115]
[1644195785807,13.2105,113.64,113.56,38.30514115]
[1644195786207,13.4605,113.64,113.56,38.30514115]
[1644195786608,45.91715453,113.63,113.56,51.51514115]